bitfinex/quotes_SOLUSD_20250330
["timestamp","ask_amount","ask_price","bid_price","bid_amount"]
[1743371526166,39.806513,125.0,124.95,8.0032]
[1743371526464,12.37922414,124.99,124.92,28.0179]
[1743371528568,12.37922414,124.99,124.92,20.0128]
[1743371529768,7.8101,124.98,124.92,20.0128]
[1743371532160,25.39705536,124.98,124.91,8.0057]
[1743371532369,9.58575536,124.97,124.91,8.0057]
[1743371533266,18.64964886,124.96,124.91,8.0057]
[1743371533568,28.23540422,124.96,124.91,8.0057]
[1743371534069,35.33540422,124.96,124.91,8.0057]
[1743371534368,9.58575536,124.95,124.91,8.0057]
[1743371534742,9.58575536,124.95,124.88,28.0265]
[1743371535142,7.676,124.94,124.88,28.0265]
[1743371535348,28.51972736,124.93,124.88,8.0076]
[1743371535567,28.23540422,124.9,124.86,8.5387]
[1743371535743,18.64964886,124.9,124.86,8.5387]
[1743371536067,1.5998,124.89,124.86,8.5387]
[1743371538763,35.31540422,124.92,124.86,8.5387]
[1743371538764,1.5483,124.92,124.86,8.5387]
[1743371539182,1.5483,124.92,124.86,28.5611]
[1743371547893,1.5483,124.92,124.86,20.0224]
[1743371548573,11.13405536,124.92,124.86,20.0224]
[1743371550295,1.5483,124.92,124.86,20.0224]
[1743371553301,6.0762,124.94,124.86,20.0224]
[1743371553473,6.0762,124.94,124.86,55.98534371]
[1743371554502,6.0762,124.94,124.86,63.99424371]
[1743371556074,6.0762,124.94,124.86,64.02424371]
[1743371556273,0.063,124.92,124.86,64.02424371]
[1743371556807,0.063,124.92,124.86,63.99424371]
[1743371563683,0.063,124.92,124.89,20.0]
[1743371563999,0.063,124.92,124.89,55.96294371]
[1743371565604,0.063,124.92,124.9,8.0064]
[1743371580613,0.063,124.92,124.9,43.96934371]
[1743371598009,6.497,124.97,124.9,104.01734371]
[1743371603726,6.497,124.97,124.92,28.0179]
[1743371604027,6.497,124.97,124.92,34.9579]
[1743371604933,14.00222414,124.98,124.95,20.0]
[1743371605110,14.00222414,124.98,124.95,55.96294371]
[1743371605713,14.00222414,124.98,124.96,8.0025]
[1743371606346,1.623,124.98,124.96,8.0025]
[1743371610723,1.623,124.98,124.94,8.0038]
[1743371612853,1.623,124.98,124.93,28.0155]
[1743371617547,1.623,124.98,124.93,8.0044]
[1743371617750,6.4861,124.97,124.93,8.0044]
[1743371620260,12.37922414,124.95,124.93,8.0044]
[1743371620855,67.32524236,124.97,124.92,35.96294371]
[1743371622068,54.94601822,124.97,124.92,35.96294371]
[1743371622271,54.94601822,124.97,124.93,8.0044]
[1743371622955,1.6163,124.96,124.93,8.0044]
[1743371623335,1.6163,124.96,124.92,43.96784371]
[1743371623535,11.20205536,124.96,124.91,8.0057]
[1743371624135,19.20465536,124.96,124.91,8.0057]
[1743371624552,1.6163,124.96,124.91,8.0057]
[1743371625261,11.20205536,124.96,124.91,8.0057]
[1743371625657,19.20455536,124.96,124.9,8.0364]
[1743371625961,9.6188,124.96,124.9,8.0364]
[1743371627244,8.0025,124.96,124.9,8.0364]
[1743371627444,8.2713,124.95,124.9,8.0364]
[1743371627858,23.2349,124.95,124.9,8.0364]
[1743371628760,35.61412414,124.95,124.9,8.0364]
[1743371629658,35.61412414,124.95,124.9,0.03]
[1743371629659,18.64964886,124.94,124.9,0.03]
[1743371629860,26.65394886,124.94,124.9,0.03]
[1743371630540,8.2713,124.93,124.9,0.03]
[1743371630735,18.933972,124.92,124.9,0.03]
[1743371630960,20.26594886,124.91,124.9,0.03]
[1743371631761,28.27164886,124.91,124.9,0.03]
[1743371632139,20.26594886,124.91,124.9,0.03]
[1743371632842,27.22594886,124.91,124.9,0.03]
[1743371633042,8.2713,124.9,124.86,0.03]
[1743371641069,17.85705536,124.9,124.86,0.03]
[1743371641249,8.2713,124.9,124.86,0.03]
[1743371641652,18.64964886,124.89,124.86,0.03]
[1743371643270,18.64964886,124.86,124.79,28.077]
[1743371643450,25.66964886,124.86,124.79,28.077]
[1743371643651,9.58575536,124.85,124.79,28.077]
[1743371644156,25.317772,124.83,124.79,8.0434]
[1743371644366,9.58575536,124.81,124.79,8.0434]
[1743371644760,110.91240422,124.8,124.7,40.0937]
[1743371644954,16.2538785,124.79,124.7,40.0937]
[1743371645149,16.2538785,124.79,124.75,8.0157]
[1743371645554,41.92352736,124.79,124.73,8.0466]
[1743371645765,9.58575536,124.77,124.73,8.0466]
[1743371645973,9.58575536,124.77,124.73,0.03]
[1743371646178,18.933972,124.76,124.73,0.03]
[1743371646384,16.60575536,124.75,124.73,0.03]
[1743371647370,18.64964886,124.74,124.73,0.03]
[1743371647955,16.60575536,124.75,124.73,0.03]
[1743371648563,7.02,124.75,124.73,0.03]
[1743371648764,7.0,124.76,124.73,0.03]
[1743371648971,16.58575536,124.76,124.73,0.03]
[1743371650673,7.0,124.76,124.73,0.03]
[1743371650847,25.64964886,124.76,124.73,0.03]
[1743371651976,18.64964886,124.76,124.73,0.03]
[1743371652169,1.577,124.8,124.73,0.03]
[1743371652366,1.577,124.8,124.7,47.32892904]
[1743371652574,18.64964886,124.79,124.7,83.29187275]
[1743371652771,28.23540422,124.79,124.7,83.29187275]
[1743371653678,28.23540422,124.79,124.7,103.33997275]
[1743371657661,35.21540422,124.79,124.73,20.0]
[1743371659184,35.21540422,124.79,124.7,143.43617275]
[1743371659377,35.21540422,124.79,124.73,20.0]
[1743371659573,35.21540422,124.79,124.74,28.0582]
[1743371660387,28.23540422,124.79,124.74,28.0582]
[1743371660585,18.14275536,124.8,124.74,68.1415]
[1743371662392,11.16275536,124.8,124.74,68.1415]
[1743371664005,11.16275536,124.8,124.73,20.0]
[1743371665093,11.16275536,124.8,124.74,68.1415]
[1743371670502,11.22575536,124.8,124.74,68.1415]
[1743371673295,1.64,124.8,124.74,68.1415]
[1743371673703,11.22575536,124.8,124.74,68.1415]
[1743371678107,1.64,124.8,124.74,68.1415]
[1743371681807,1.64,124.8,124.74,8.0166]
[1743371696025,1.64,124.8,124.74,8.0466]
[1743371697925,1.64,124.8,124.74,28.0882]
[1743371700723,0.063,124.8,124.74,70.93114371]
[1743371701231,0.063,124.8,124.74,71.43114371]
[1743371701707,0.063,124.8,124.74,111.01444371]
[1743371704719,0.063,124.8,124.78,8.0141]
[1743371705434,0.16217,124.83,124.78,8.0141]
[1743371706415,0.16217,124.79,124.74,35.99294371]
[1743371706625,6.22287,124.8,124.75,8.016]
[1743371707012,6.28587,124.8,124.75,8.016]
[1743371707511,6.1237,124.8,124.75,8.016]
[1743371708028,0.063,124.8,124.75,28.056]
[1743371713541,0.063,124.8,124.79,8.0134]
[1743371714540,0.063,124.8,124.76,20.0371]
[1743371716740,0.063,124.8,124.79,20.0]
[1743371718641,0.063,124.8,124.79,28.0134]
[1743371720731,6.5634,124.87,124.8,0.28432314]
[1743371720932,1.6916,124.89,124.83,20.0]
[1743371721332,0.063,124.89,124.83,101.0]
[1743371721534,0.063,124.89,124.84,0.28432314]
[1743371722649,0.063,124.89,124.85,28.0336]
[1743371723744,0.063,124.89,124.86,0.28432314]
[1743371723945,0.063,124.89,124.88,20.0]
[1743371724247,6.6264,124.93,124.89,20.0]
[1743371724445,6.6264,124.93,124.89,101.0]
[1743371724637,6.6264,124.93,124.9,8.0064]
[1743371724829,0.063,124.93,124.9,8.0064]
[1743371726352,0.063,124.93,124.9,28.0224]
[1743371727535,0.063,124.93,124.9,115.9224]
[1743371730553,0.063,124.93,124.92,20.0]
[1743371730739,0.063,124.93,124.92,101.0]
[1743371731257,0.063,124.93,124.92,109.0051]
[1743371733059,0.063,124.95,124.92,109.0051]
[1743371733060,0.063,124.95,124.92,129.0179]
[1743371742163,0.063,124.98,124.93,0.28432314]
[1743371742541,0.063,124.98,124.94,8.0038]
[1743371742747,0.063,124.98,124.94,14.8638]
[1743371743653,0.063,124.95,124.94,14.8638]
[1743371744041,0.063,124.98,124.94,14.8638]
[1743371745563,0.063,124.98,124.95,0.28432314]
[1743371746673,0.063,124.98,124.96,8.0025]
[1743371748567,0.063,125.01,124.96,8.0025]
[1743371754566,0.063,125.01,124.94,8.0038]
[1743371754772,8.2204,124.99,124.94,8.0038]
[1743371755071,8.2204,124.99,124.96,20.0]
[1743371755370,8.2204,124.99,124.96,20.03]
[1743371759559,8.2204,124.99,124.96,101.03]
[1743371761278,8.2204,124.99,124.96,109.0324]
[1743371767056,8.2834,124.99,124.96,109.0324]
[1743371782808,8.121,124.97,124.96,0.03]
[1743371783016,8.28317,124.97,124.96,0.03]
[1743371783179,17.86892536,124.97,124.96,0.03]
[1743371783376,0.16217,124.96,124.92,0.03]
[1743371783677,0.16217,124.94,124.92,0.03]
[1743371784476,8.28317,124.93,124.92,0.03]
[1743371784675,0.16217,124.91,124.87,81.0]
[1743371785094,0.16217,124.9,124.87,81.0]
[1743371786276,0.16217,124.91,124.87,81.0]
[1743371786498,0.16217,124.9,124.87,81.0]
[1743371788908,0.16217,124.9,124.86,20.0]
[1743371791185,0.16217,124.9,124.86,20.03]
[1743371791386,0.16217,124.9,124.86,0.03]
[1743371791592,0.16217,124.88,124.86,0.03]
[1743371794616,7.75037,124.87,124.86,0.03]
[1743371804923,15.75867,124.87,124.86,0.03]
[1743371810329,25.34442536,124.87,124.86,0.03]
[1743371811336,7.75037,124.87,124.86,0.03]
[1743371812131,17.33612536,124.87,124.86,0.03]
[1743371814135,25.34442536,124.87,124.86,0.03]
[1743371815034,15.75867,124.87,124.86,0.03]
[1743371815736,7.75037,124.87,124.86,0.03]
[1743371816540,0.16217,124.87,124.86,0.03]
[1743371820961,0.16217,124.88,124.86,0.03]
[1743371821149,0.16217,124.87,124.86,0.03]
[1743371824372,0.16217,124.88,124.86,0.03]
[1743371824549,0.16217,124.87,124.86,0.03]
[1743371826552,0.16217,124.88,124.86,0.03]
[1743371826757,0.16217,124.87,124.86,0.03]
[1743371833579,8.17047,124.87,124.86,0.03]
[1743371833770,25.41902536,124.87,124.86,0.03]
[1743371838591,44.35299736,124.87,124.86,0.03]
[1743371843792,44.6373205,124.87,124.86,0.03]
[1743371844672,0.16217,124.84,124.83,0.03]
[1743371844872,16.68792536,124.84,124.83,0.03]
[1743371845082,43.5690205,124.84,124.83,0.03]
[1743371845866,53.85256077,124.84,124.83,0.03]
[1743371846589,61.86276077,124.84,124.83,0.03]
[1743371847187,0.16217,124.8,124.79,0.03]
[1743371847487,9.74792536,124.8,124.79,0.03]
[1743371848272,24.19052536,124.8,124.79,0.03]
[1743371848491,70.5463468,124.8,124.79,0.03]
[1743371848795,0.16217,124.75,124.74,0.03]
[1743371852167,9.74792536,124.75,124.74,0.03]
[1743371853587,28.68189736,124.75,124.74,0.03]
[1743371853790,36.69789736,124.75,124.74,0.03]
[1743371857099,47.26576077,124.75,124.74,0.03]
[1743371857893,128.36576077,124.75,124.74,0.03]
[1743371860496,128.36576077,124.75,124.66,0.30285062]
[1743371860497,7.85927,124.68,124.66,0.30285062]
[1743371860695,0.16217,124.63,124.61,0.03]
[1743371860875,0.16217,124.65,124.61,0.03]
[1743371861079,15.72792536,124.67,124.61,0.03]
[1743371861591,9.58575536,124.65,124.61,0.03]
[1743371862284,98.53157397,124.67,124.61,0.03]
[1743371862285,28.8040505,124.64,124.61,0.03]
[1743371862603,6.98,124.63,124.61,0.03]
[1743371863194,28.8040505,124.64,124.61,0.03]
[1743371863500,6.98,124.63,124.61,0.03]
[1743371863702,16.56575536,124.63,124.61,0.03]
[1743371863993,6.98,124.63,124.61,0.03]
[1743371864182,6.96,124.62,124.61,0.03]
[1743371867002,7.02,124.62,124.61,0.03]
[1743371869202,16.60575536,124.62,124.61,0.03]
[1743371869402,43.57722736,124.62,124.61,0.03]
[1743371873291,43.8615505,124.62,124.61,0.03]
[1743371881110,33.70714886,124.62,124.61,0.03]
[1743371881313,7.0,124.63,124.61,0.03]
[1743371884411,81.1,124.64,124.61,0.03]
[1743371884598,18.64964886,124.65,124.61,0.03]
[1743371886301,7.0,124.66,124.61,0.03]
[1743371887315,18.64964886,124.66,124.61,0.03]
[1743371887519,25.64964886,124.66,124.61,0.03]
[1743371888120,25.64964886,124.66,124.61,0.03]
[1743371888419,7.0,124.66,124.61,0.03]
[1743371889198,0.063,124.67,124.61,0.03]
[1743371889406,0.063,124.67,124.61,20.03]
[1743371890314,0.063,124.67,124.62,8.0243]
[1743371890725,0.063,124.67,124.61,28.0548]
[1743371893628,0.063,124.67,124.61,35.0548]
[1743371893809,0.063,124.67,124.61,55.1173]
[1743371894422,0.063,124.67,124.63,28.083]
[1743371895825,0.063,124.67,124.66,20.0]
[1743371896622,0.063,124.67,124.66,28.0218]
[1743371897018,88.1,124.75,124.66,28.0218]
[1743371897208,7.0,124.75,124.66,28.0218]
[1743371897407,0.063,124.67,124.66,28.0218]
[1743371897619,7.0,124.75,124.66,28.0218]
[1743371898328,7.9351,124.76,124.67,0.14216157]
[1743371898905,7.9351,124.76,124.7,20.0]
[1743371899109,11.54959582,124.78,124.7,20.0]
[1743371899329,18.64964886,124.78,124.7,20.0]
[1743371899923,98.62085536,124.79,124.7,20.0]
[1743371900121,26.58474886,124.79,124.7,20.0]
[1743371900325,26.58474886,124.79,124.71,8.0186]
[1743371902836,7.9351,124.79,124.71,8.0186]
[1743371903720,7.9351,124.79,124.71,28.0651]
[1743371905923,7.9351,124.79,124.74,20.0]
[1743371906421,0.063,124.8,124.74,28.0164]
[1743371908435,0.063,124.8,124.74,48.058]
[1743371909939,0.063,124.79,124.74,129.058]
[1743371910335,0.063,124.79,124.75,0.14216157]
[1743371910517,0.063,124.79,124.78,20.0]
[1743371911230,0.063,124.8,124.79,20.0]
[1743371912646,0.063,124.8,124.79,28.0134]
[1743371913533,8.0522,124.85,124.79,28.15556157]
[1743371913732,6.492,124.85,124.79,109.15556157]
[1743371914125,1.5602,124.88,124.79,109.15556157]
[1743371914329,1.5602,124.88,124.8,0.14216157]
[1743371915245,1.5602,124.88,124.81,8.0121]
[1743371917435,1.5602,124.88,124.81,14.9721]
[1743371917848,1.5602,124.88,124.81,95.9721]
[1743371923231,1.6232,124.88,124.81,95.9721]
[1743371928058,1.6232,124.88,124.82,0.14216157]
[1743371928256,1.6232,124.88,124.82,81.14216157]
[1743371928653,0.063,124.88,124.82,81.14216157]
[1743371929654,0.063,124.88,124.83,8.0108]
[1743371931366,0.063,124.88,124.84,0.14216157]
[1743371931562,0.063,124.88,124.85,8.0096]
[1743371937766,0.063,124.92,124.88,20.0]
[1743371937970,0.063,124.92,124.87,81.0]
[1743371938361,0.063,124.92,124.88,8.0076]
[1743371939145,0.063,124.92,124.88,14.9276]
[1743371939871,7.3861,124.95,124.88,14.9276]
[1743371940965,7.3861,124.95,124.88,34.9468]
[1743371941148,7.3861,124.95,124.89,0.14216157]
[1743371942151,7.3861,124.95,124.9,8.0064]
[1743371942853,14.3831,124.99,124.9,8.0064]
[1743371943059,15.96815536,124.99,124.9,8.0064]
[1743371943748,23.96885536,124.99,124.9,8.0064]
[1743371944274,0.063,124.99,124.95,8.0032]
[1743371944468,0.063,124.99,124.95,34.9512]
[1743371944664,0.063,124.99,124.95,14.9432]
[1743371945251,0.063,124.99,124.95,6.94]
[1743371946865,0.063,124.99,124.95,14.9431]
[1743371947574,0.063,124.99,124.95,6.94]
[1743371950397,0.063,124.99,124.95,14.943]
[1743371952590,0.063,124.99,124.98,20.0]
[1743371954481,0.063,124.99,124.97,8.0019]
[1743371955859,0.063,125.01,124.97,8.0019]
[1743371956162,0.063,125.01,124.97,28.0067]
[1743371956382,0.063,125.01,125.0,28.0]
[1743371957275,0.063,125.01,125.0,28.14216157]
[1743371958162,0.063,125.02,125.0,28.14216157]
[1743371970789,0.063,125.02,125.0,28.17216157]
[1743371972693,0.063,125.02,125.01,0.14216157]
[1743371972896,0.063,125.02,125.01,8.14146157]
[1743371983712,0.063,125.02,125.01,8.28362314]
[1743371989402,0.063,125.03,125.02,0.14216157]
[1743371991512,0.063,125.03,125.02,20.0]
[1743371991708,6.0949,125.03,125.0,81.03]
[1743371996914,6.0949,125.03,125.0,0.03]
[1743371999797,23.67875536,125.03,125.0,0.03]
[1743372000425,20.19184886,125.02,124.93,81.0]
[1743372000712,1.5422,124.99,124.96,20.0]
[1743372000909,6.1028,124.98,124.93,81.0]
[1743372001119,18.64964886,124.97,124.91,211.58]
[1743372001325,18.64964886,124.97,124.9,89.0361]
[1743372001501,6.1028,124.94,124.9,0.03]
[1743372001697,18.64964886,124.93,124.9,0.03]
[1743372001898,1.5422,124.92,124.9,0.03]
[1743372002517,11.12795536,124.92,124.9,0.03]
[1743372003303,28.23540422,124.91,124.9,0.03]
[1743372003615,41.41820422,124.91,124.88,0.03]
[1743372003802,31.83244886,124.91,124.88,0.03]
[1743372004011,24.75244886,124.91,124.88,0.03]
[1743372004208,34.33820422,124.91,124.88,0.03]
[1743372004536,6.1028,124.91,124.88,20.03]
[1743372005331,6.1028,124.91,124.9,0.03]
[1743372007945,34.33820422,124.91,124.9,0.03]
[1743372008155,34.33820422,124.91,124.88,0.03]
[1743372008445,9.58575536,124.89,124.88,0.03]
[1743372008826,9.58575536,124.89,124.87,0.03]
[1743372008827,18.30795536,124.89,124.87,0.03]
[1743372009025,28.23540422,124.88,124.87,0.03]
[1743372009847,18.64964886,124.88,124.87,0.03]
[1743372010031,33.69498141,124.88,124.87,0.03]
[1743372010820,18.64964886,124.87,124.81,8.0119]
[1743372011019,18.64964886,124.87,124.84,20.0]
[1743372011020,33.69498141,124.87,124.84,20.0]
[1743372011226,33.69498141,124.85,124.8,0.03]
[1743372011815,1.5422,124.83,124.8,0.03]
[1743372012026,6.1028,124.82,124.8,0.03]
[1743372012822,21.14813255,124.82,124.8,0.03]
[1743372013244,18.64964886,124.81,124.8,0.03]
[1743372013547,33.69498141,124.81,124.8,0.03]
[1743372014124,21.14813255,124.82,124.8,0.03]
[1743372014843,6.1028,124.82,124.8,0.03]
[1743372015519,7.8853,124.93,124.83,0.5]
[1743372015738,7.8853,124.93,124.87,20.0]
[1743372016336,7.8853,124.93,124.88,8.0076]
[1743372016542,7.8853,124.93,124.87,20.0]
[1743372016543,7.8853,124.93,124.87,28.0081]
[1743372017345,7.8853,124.93,124.88,20.0]
[1743372018125,7.8853,124.93,124.87,20.0]
[1743372018632,22.93063255,124.93,124.87,20.0]
[1743372019437,33.69498141,124.92,124.88,20.0]
[1743372019741,15.04533255,124.9,124.83,81.0]
[1743372019940,15.04533255,124.88,124.83,81.0]
[1743372020541,33.69498141,124.87,124.82,211.84]
[1743372020737,33.69498141,124.87,124.83,20.0]
[1743372021039,22.93063255,124.86,124.8,7.31]
[1743372021742,33.69498141,124.85,124.8,0.03]
[1743372022050,15.04533255,124.84,124.8,0.03]
[1743372022250,18.64964886,124.83,124.8,0.03]
[1743372022459,15.04533255,124.82,124.8,0.03]
[1743372022773,39.96928141,124.81,124.8,0.03]
[1743372023431,40.53792769,124.81,124.8,0.03]
[1743372024143,15.04533255,124.8,124.79,0.03]
[1743372024335,23.05813255,124.8,124.79,0.03]
[1743372024541,30.37813255,124.8,124.79,0.03]
[1743372025026,49.02778141,124.8,124.77,0.03]
[1743372025227,33.69498141,124.78,124.77,0.03]
[1743372025427,18.64964886,124.77,124.7,0.28432314]
[1743372025649,15.04533255,124.75,124.68,211.82]
[1743372025853,42.77235239,124.74,124.68,211.82]
[1743372026155,30.39700353,124.72,124.67,0.03]
[1743372026630,30.39700353,124.72,124.68,20.0]
[1743372026826,6.2743,124.72,124.68,20.0]
[1743372027633,6.2743,124.72,124.67,0.03]
[1743372027854,6.2743,124.72,124.68,20.0]
[1743372028151,6.2743,124.72,124.69,0.03]
[1743372028946,18.64964886,124.71,124.69,0.03]
[1743372029247,42.77235239,124.71,124.69,0.03]
[1743372029635,24.12270353,124.7,124.69,0.03]
[1743372029839,42.77235239,124.7,124.69,0.03]
[1743372030744,43.05667553,124.7,124.69,0.03]
[1743372031128,18.933972,124.7,124.69,0.03]
[1743372031330,43.05667553,124.7,124.69,0.03]
[1743372032747,132.17587553,124.7,124.69,0.03]
[1743372033447,19.21829514,124.69,124.67,0.03]
[1743372033649,24.12270353,124.68,124.67,0.03]
[1743372034352,31.44270353,124.68,124.67,0.03]
[1743372034532,50.37667553,124.68,124.67,0.03]
[1743372036048,52.04037553,124.68,124.63,20.0]
[1743372036247,24.12270353,124.66,124.63,20.0]
[1743372036754,24.12270353,124.64,124.57,8.0276]
[1743372036937,18.64964886,124.62,124.57,8.0276]
[1743372037133,42.77235239,124.62,124.56,0.03]
[1743372037330,24.12270353,124.58,124.56,0.03]
[1743372037740,24.12270353,124.59,124.56,0.03]
[1743372038067,42.77235239,124.57,124.56,0.03]
[1743372038558,50.33235239,124.57,124.56,0.03]
[1743372039144,6.5918,124.58,124.56,0.03]
[1743372039450,18.64964886,124.59,124.56,0.03]
[1743372039650,18.64964886,124.6,124.56,0.03]
[1743372040045,14.2318,124.62,124.56,20.03]
[1743372040242,18.64964886,124.64,124.57,27.94432314]
[1743372041372,1.6637,124.65,124.58,0.28432314]
[1743372041532,18.64964886,124.66,124.58,0.28432314]
[1743372042154,18.64964886,124.66,124.62,20.0]
[1743372042458,42.77235239,124.66,124.62,20.0]
[1743372042846,24.12270353,124.65,124.62,20.0]
[1743372044060,24.12270353,124.65,124.61,20.0]
[1743372045075,24.12270353,124.64,124.59,8.0262]
[1743372045769,24.12270353,124.63,124.58,8.0269]
[1743372046574,24.12270353,124.62,124.56,0.03]
[1743372046764,24.12270353,124.62,124.56,8.058]
[1743372047358,24.12270353,124.61,124.56,8.058]
[1743372047757,24.12270353,124.62,124.56,8.058]
[1743372048991,24.12270353,124.62,124.56,0.03]
[1743372050589,31.76270353,124.63,124.56,0.03]
[1743372050758,18.64964886,124.63,124.56,0.03]
[1743372051576,81.1,124.65,124.58,20.0]
[1743372051751,42.77235239,124.65,124.58,20.0]
[1743372053275,42.77235239,124.65,124.59,8.0263]
[1743372053653,24.12270353,124.64,124.59,8.0263]
[1743372055766,24.12270353,124.64,124.57,8.0276]
[1743372056472,50.37235239,124.65,124.57,8.0276]
[1743372056676,24.12270353,124.64,124.57,8.0276]
[1743372056862,50.37235239,124.65,124.57,8.0276]
[1743372057065,7.6,124.65,124.57,28.0966]
[1743372057258,7.6,124.65,124.58,0.28432314]
[1743372057655,0.063,124.66,124.6,0.56864628]
[1743372058059,0.063,124.66,124.63,20.0]
[1743372059580,0.063,124.66,124.64,8.0231]
[1743372060156,0.063,124.66,124.63,20.0]
[1743372060568,24.18570353,124.66,124.61,8.0249]
[1743372061164,24.18570353,124.66,124.62,20.0]
[1743372061461,24.18570353,124.66,124.59,8.0263]
[1743372061662,0.063,124.66,124.59,8.0263]
[1743372063276,0.063,124.66,124.59,20.0658]
[1743372063990,0.063,124.66,124.62,20.0]
[1743372064689,0.063,124.66,124.63,0.28432314]
[1743372065379,0.063,124.66,124.63,8.0237]
[1743372068593,0.063,124.66,124.65,20.28432314]
[1743372068761,0.063,124.66,124.65,20.56864628]
[1743372068955,0.063,124.66,124.65,20.28432314]
[1743372069985,0.063,124.66,124.65,28.30672314]
[1743372071283,6.3654,124.73,124.66,0.78432314]
[1743372071462,1.5977,124.75,124.7,20.0]
[1743372072171,1.5977,124.75,124.7,28.0189]
[1743372077178,6.3654,124.76,124.61,8.0247]
[1743372077179,20.24234886,124.69,124.61,8.0247]
[1743372077493,24.12270353,124.65,124.6,81.0]
[1743372077694,24.12270353,124.64,124.59,8.0261]
[1743372078393,24.12270353,124.65,124.59,8.0261]
[1743372078890,24.12270353,124.65,124.57,8.0276]
[1743372078891,18.64964886,124.64,124.57,8.0276]
[1743372079193,30.66650353,124.63,124.57,8.0276]
[1743372079584,6.5438,124.63,124.57,8.0276]
[1743372080183,6.5438,124.63,124.6,20.0]
[1743372083995,6.5438,124.63,124.6,28.0254]
[1743372084178,6.5438,124.66,124.6,28.0254]
[1743372084375,32.25920353,124.69,124.6,48.0896]
[1743372084571,24.12270353,124.67,124.6,28.0254]
[1743372084773,24.12270353,124.66,124.6,28.0254]
[1743372084995,24.12270353,124.66,124.6,20.0]
[1743372085794,32.14450353,124.66,124.6,20.0]
[1743372086571,24.12270353,124.66,124.6,20.0]
[1743372087178,24.18570353,124.66,124.6,20.0]
[1743372087875,24.18570353,124.66,124.6,28.0256]
[1743372088077,24.18570353,124.66,124.6,20.0]
[1743372088276,32.20750353,124.66,124.6,20.0]
[1743372088497,24.12270353,124.65,124.59,0.03]
[1743372088696,24.12270353,124.64,124.59,0.03]
[1743372091401,31.72270353,124.65,124.59,0.03]
[1743372091580,7.6,124.65,124.59,0.03]
[1743372092101,31.72270353,124.65,124.59,0.03]
[1743372096510,24.12270353,124.64,124.59,0.03]
[1743372099705,22.70245423,124.65,124.59,0.03]
[1743372101304,15.10245423,124.64,124.59,0.03]
[1743372101503,1.5108,124.62,124.59,0.03]
[1743372103608,16.61325423,124.62,124.59,0.03]
[1743372105012,24.63765423,124.62,124.59,0.03]
[1743372105504,16.61325423,124.62,124.59,0.03]
[1743372106409,15.10245423,124.6,124.59,0.03]
[1743372106604,18.64964886,124.6,124.59,0.03]
[1743372106805,33.75210309,124.6,124.59,0.03]
[1743372108115,41.77770309,124.6,124.59,0.03]
[1743372108286,25.25204886,124.59,124.56,0.03]
[1743372108493,16.75875423,124.57,124.56,0.03]
[1743372109015,35.40840309,124.57,124.56,0.03]
[1743372110301,43.43600309,124.57,124.56,0.03]
[1743372111310,125.10464937,124.57,124.56,0.03]
[1743372112205,124.53600309,124.57,124.56,0.03]
[1743372112904,116.50840309,124.57,124.56,0.03]
[1743372113105,124.53600309,124.57,124.56,0.03]
[1743372113405,116.50840309,124.57,124.56,0.03]